fUST/lending_fUST_20250916
["ID","MTS","AMOUNT","RATE_DAILY","PERIOD"]
[385707819,1757982637664,-480.0,0.00022964,3]
[385707821,1757982637674,-480.0,0.00022964,3]
[385707823,1757982637683,-936.85,0.00022964,3]
[385707825,1757982637692,-480.0,0.00022964,3]
[385707827,1757982637702,-1192.65,0.00022964,3]
[385707829,1757982637711,-586.26,0.00022964,3]
[385707831,1757982637720,-1185.96,0.00022965,3]
[385707833,1757982637729,-465.09751842,0.00022965,2]
[385707835,1757982637740,-151.0,0.00022965,3]
[385707837,1757982637750,-151.0,0.00022965,3]
[385707839,1757982637759,-163.0,0.00022965,3]
[385707841,1757982637768,-156.78283566,0.00022965,2]
[385707843,1757982637778,-257.07234793,0.00022965,2]
[385707845,1757982637788,-257.35721376,0.00022965,2]
[385707847,1757982637798,-157.56564108,0.00022965,2]
[385707849,1757982637807,-370000.0,0.00022966,2]
[385707851,1757982637816,-500.0,0.00022973,2]
[385707853,1757982637825,-500.0,0.00022973,2]
[385707855,1757982637834,-500.0,0.00022973,2]
[385707857,1757982637843,-500.0,0.00022973,2]
[385707859,1757982637853,-500.0,0.00022973,2]
[385707861,1757982637861,-500.0,0.00022973,2]
[385707863,1757982637871,-485.04805454,0.00022973,2]
[385707865,1757982637879,-500.0,0.00022973,2]
[385707867,1757982637889,-500.0,0.00022973,2]
[385707869,1757982637898,-500.0,0.00022973,2]
[385707871,1757982637907,-313.3833243,0.00022973,2]
[385707873,1757982637916,-500.0,0.00022973,2]
[385707875,1757982637925,-500.0,0.00022973,2]
[385707877,1757982637935,-500.0,0.00022973,2]
[385707879,1757982637943,-364.04709073,0.00022973,2]
[385707881,1757982637952,-500.0,0.00022973,2]
[385707883,1757982637962,-500.0,0.00022973,2]
[385707885,1757982637971,-150.0,0.00022973,2]
[385707887,1757982637980,-500.0,0.00022973,2]
[385707889,1757982637990,-300.0,0.0002311,2]
[385707891,1757982637999,-389.4075545,0.000232,2]
[385707893,1757982638009,-389.4075545,0.000232,2]
[385707895,1757982638018,-389.4075545,0.000232,2]
[385707897,1757982638027,-389.4075545,0.000232,2]
[385707899,1757982638038,-597.73695842,0.00023221,2]
[385707901,1757982638050,-151.0,0.00023236,2]
[385707903,1757982638059,-500.0,0.00023236,2]
[385707904,1757982638068,-480.0,0.00023238,3]
[385707906,1757982638077,-480.0,0.00023238,3]
[385707908,1757982638086,-936.85,0.00023238,3]
[385707910,1757982638095,-480.0,0.00023238,3]
[385707912,1757982638104,-1192.65,0.00023238,3]
[385707914,1757982638113,-586.26,0.00023238,3]
[385707916,1757982638122,-151.0,0.00023239,3]
[385707918,1757982638131,-151.0,0.00023239,3]
[385707920,1757982638140,-1185.96,0.00023239,3]
[385707922,1757982638149,-233.24851325,0.00023239,3]
[385707924,1757982638159,-450.0,0.00023247,2]
[385707926,1757982638168,-387.95026368,0.00023249,2]
[385707928,1757982638177,-847.45018724,0.00023263,3]
[385707930,1757982638186,-1298.23,0.00023287,2]
[385707932,1757982638196,-389.4075545,0.000233,2]
[385707934,1757982638215,-151.0,0.00023356,2]
[385707936,1757982638224,-151.0,0.00023356,2]
[385707938,1757982638233,-151.0,0.00023356,2]
[385707940,1757982638242,-151.0,0.00023356,2]
[385707942,1757982638251,-151.0,0.00023356,2]
[385707944,1757982638261,-18761.83172441,0.00023356,2]
[385707946,1757982638270,-151.0,0.00023356,2]
[385707948,1757982638279,-181.08010149,0.00023356,2]
[385707950,1757982638287,-151.0,0.00023356,2]
[385707952,1757982638298,-1000.0,0.00023356,2]
[385707954,1757982638307,-1000.0,0.00023356,2]
[385707956,1757982638316,-500.0,0.00023356,2]
[385707958,1757982638326,-151.0,0.00023356,2]
[385707960,1757982638335,-1000.0,0.00023356,2]
[385707962,1757982638344,-500.0,0.00023356,2]
[385707964,1757982638353,-151.0,0.00023356,2]
[385707966,1757982638362,-1000.0,0.00023356,2]
[385707967,1757982638371,-1000.0,0.00023356,2]
[385707969,1757982638383,-151.0,0.00023356,2]
[385707971,1757982638391,-500.0,0.00023356,2]
[385707973,1757982638401,-1000.0,0.00023356,2]
[385707975,1757982638410,-151.0,0.00023356,2]
[385707977,1757982638420,-151.0,0.00023356,2]
[385707979,1757982638430,-500.0,0.00023356,2]
[385707981,1757982638445,-151.0,0.00023356,2]
[385707983,1757982638456,-151.0,0.00023356,2]
[385707985,1757982638465,-500.0,0.00023356,2]
[385707987,1757982638475,-151.0,0.00023356,2]
[385707989,1757982638484,-1000.0,0.00023356,2]
[385707991,1757982638493,-151.0,0.00023356,2]
[385707993,1757982638502,-500.0,0.00023356,2]
[385707995,1757982638511,-300.11116599,0.00023356,2]
[385707997,1757982638520,-1000.0,0.00023356,2]
[385707999,1757982638529,-500.0,0.00023356,2]
[385708001,1757982638539,-151.0,0.00023356,2]
[385708003,1757982638549,-1000.0,0.00023356,2]
[385708005,1757982638558,-500.0,0.00023356,2]
[385708007,1757982638567,-151.0,0.00023356,2]
[385708009,1757982638576,-1000.0,0.00023356,2]
[385708011,1757982638585,-500.0,0.00023356,2]
[385708013,1757982638595,-1000.0,0.00023356,2]
[385708015,1757982638605,-174.65843349,0.00023356,2]
[385708017,1757982638615,-500.0,0.00023356,2]
[385708019,1757982638624,-1000.0,0.00023356,2]
[385708021,1757982638634,-500.0,0.00023356,2]
[385708023,1757982638642,-1000.0,0.00023356,2]
[385708025,1757982638652,-500.0,0.00023356,2]
[385708027,1757982638661,-1145.9850186,0.00023356,2]
[385708029,1757982638671,-500.0,0.00023356,2]
[385708031,1757982638680,-500.0,0.00023356,2]
[385708033,1757982638689,-500.0,0.00023356,2]
[385708035,1757982638698,-500.0,0.00023356,2]
[385708037,1757982638707,-500.0,0.00023356,2]
[385708039,1757982638716,-500.0,0.00023356,2]
[385708041,1757982638726,-500.0,0.00023356,2]
[385708043,1757982638735,-500.0,0.00023356,2]
[385708045,1757982638744,-500.0,0.00023356,2]
[385708047,1757982638752,-500.0,0.00023356,2]
[385708049,1757982638762,-218.31269636,0.00023384,2]
[385708051,1757982638771,-300.89952072,0.00023454,2]
[385708053,1757982638781,-500.0,0.00023473,2]
[385708055,1757982638790,-500.52912716,0.00023473,2]
[385708057,1757982638802,-500.0,0.00023473,2]
[385708059,1757982638811,-500.0,0.00023473,2]
[385708061,1757982638821,-500.0,0.00023473,2]
[385708063,1757982638830,-500.76948217,0.00023473,2]
[385708065,1757982638839,-500.0,0.00023473,2]
[385708067,1757982638847,-500.0,0.00023473,2]
[385708069,1757982638856,-500.0,0.00023473,2]
[385708071,1757982638865,-502.08173503,0.00023473,2]
[385708073,1757982638875,-500.0,0.00023473,2]
[385708075,1757982638883,-500.0,0.00023473,2]
[385708077,1757982638892,-501.09002697,0.00023473,2]
[385708079,1757982638901,-500.0,0.00023473,2]
[385708081,1757982638910,-500.0,0.00023473,2]
[385708083,1757982638918,-500.0,0.00023473,2]
[385708085,1757982638927,-500.0,0.00023473,2]
[385708087,1757982638937,-151.0,0.0002351,2]
[385708099,1757982638946,-500.0,0.0002351,2]
[385708102,1757982639055,-160.0,0.00023511,2]
[385708104,1757982639064,-480.0,0.00023512,3]
[385708105,1757982639073,-480.0,0.00023512,3]
[385708107,1757982639083,-936.85,0.00023512,3]
[385708109,1757982639092,-480.0,0.00023512,3]
[385708111,1757982639101,-1192.65,0.00023512,3]
[385708113,1757982639110,-586.26,0.00023512,3]
[385708115,1757982639119,-157.93389343,0.00023513,3]
[385708117,1757982639128,-151.0,0.00023513,3]
[385708119,1757982639137,-1185.96,0.00023513,3]
[385708121,1757982639146,-1000.0,0.00023521,2]
[385708123,1757982639155,-1000.0,0.00023521,2]
[385708125,1757982639165,-1000.0,0.00023521,2]
[385708127,1757982639174,-1000.0,0.00023521,2]
[385708129,1757982639183,-1000.0,0.00023521,2]
[385708131,1757982639192,-1000.85652594,0.00023521,2]
[385708133,1757982639201,-1000.0,0.00023521,2]
[385708135,1757982639210,-1000.0,0.00023521,2]
[385708137,1757982639220,-1000.0,0.00023521,2]
[385708139,1757982639229,-1000.0,0.00023521,2]
[385708141,1757982639238,-500.0,0.00023521,2]
[385708143,1757982639247,-1000.0,0.00023521,2]
[385708145,1757982639256,-160.0,0.00023537,3]
[385708147,1757982639266,-597.73695842,0.00023568,2]
[385708149,1757982639275,-151.0,0.00023784,2]
[385708152,1757982639284,-500.0,0.00023784,2]
[385708154,1757982639293,-480.0,0.00023786,3]
[385708156,1757982639303,-480.0,0.00023786,3]
[385708158,1757982639312,-936.85,0.00023786,3]
[385708161,1757982639323,-480.0,0.00023786,3]
[385708164,1757982639331,-1192.65,0.00023786,3]
[385708167,1757982639341,-586.26,0.00023786,3]
[385708170,1757982639349,-270.12626269,0.00023787,3]
[385708173,1757982639359,-1185.96,0.00023787,3]
[385708176,1757982639367,-705.64686085,0.00023892,2]
[385708179,1757982639382,-150.0,0.00023895,2]
[385708181,1757982639391,-420.0,0.00023895,2]
[385708183,1757982639400,-420.0,0.00023895,2]
[385708185,1757982639409,-597.73695842,0.00023916,2]
[385708188,1757982639419,-1680.0,0.00024006,2]
[385708191,1757982639428,-518.68054904,0.00024021,2]
[385708194,1757982639437,-1000.0,0.00024021,2]
[385708197,1757982639447,-1000.0,0.00024021,2]
[385708200,1757982639456,-1000.0,0.00024021,2]
[385708203,1757982639465,-500.67998248,0.00024021,2]
[385708206,1757982639474,-500.81987614,0.00024021,2]
[385708209,1757982639483,-1000.0,0.00024021,2]
[385708212,1757982639492,-1020.14480571,0.00024021,2]
[385708215,1757982639501,-1000.0,0.00024021,2]
[385708218,1757982639510,-1000.0,0.00024021,2]
[385708221,1757982639519,-500.19204623,0.00024021,2]
[385708224,1757982639528,-210.29970198,0.00024058,2]
[385708227,1757982639538,-500.0,0.00024058,2]
[385708230,1757982639549,-260.0,0.00024059,2]
[385708233,1757982639558,-198.67021969,0.0002406,3]
[385708236,1757982639567,-480.0,0.0002406,3]
[385708239,1757982639576,-936.85,0.0002406,3]
[385708242,1757982639585,-480.0,0.0002406,3]
[385708244,1757982639594,-1192.65,0.0002406,3]
[385708246,1757982639603,-586.26,0.0002406,3]
[385708248,1757982639612,-1185.96,0.00024061,3]
[385708250,1757982639621,-250.69111597,0.00024068,2]
[385708252,1757982639630,-1500.0,0.00024068,2]
[385708254,1757982639639,-1500.0,0.00024068,2]
[385708256,1757982639648,-1500.0,0.00024068,2]
[385708257,1757982639658,-1500.0,0.00024068,2]
[385708259,1757982639667,-1102.98973203,0.00024068,2]
[385708261,1757982639680,-1009.92163713,0.00024068,2]
[385708263,1757982639691,-1500.0,0.00024068,2]
[385708265,1757982639701,-1500.0,0.00024068,2]
[385708267,1757982639711,-160.0,0.00024082,2]
[385708269,1757982639720,-160.0,0.00024082,2]
[385708271,1757982639729,-417.15472785,0.00024083,2]
[385708273,1757982639738,-233.24851325,0.00024083,2]
[385708275,1757982639748,-250.0,0.00024145,2]
[385708277,1757982639757,-17446.838519,0.00024148,2]
[385708279,1757982639767,-3399.9909627,0.00024148,2]
[385708281,1757982639776,-4799.6173381,0.00024148,2]
[385708283,1757982639785,-176.9599927,0.00024148,2]
[385708285,1757982639795,-453.79766142,0.00024152,2]
[385708287,1757982639804,-597.73695842,0.00024263,2]
[385708289,1757982639814,-489.87472009,0.000243,2]
[385708291,1757982639823,-1306.66,0.00024326,3]
[385708293,1757982639832,-653.34,0.00024326,3]
[385708295,1757982639841,-326.66,0.00024326,3]
[385708297,1757982639851,-513.93869721,0.00024332,2]
[385708299,1757982639860,-480.0,0.00024334,3]
[385708301,1757982639869,-936.85,0.00024334,3]
[385708304,1757982639878,-480.0,0.00024334,3]
[385708307,1757982639887,-1192.65,0.00024334,3]
[385708309,1757982639896,-586.26,0.00024334,3]
[385708311,1757982639905,-1185.96,0.00024335,3]
[385708313,1757982639914,-1000.0,0.00024345,2]
[385708315,1757982639923,-562.30123503,0.00024345,2]
[385708317,1757982639932,-151.0,0.00024345,2]
[385708319,1757982639941,-154.96604367,0.00024345,2]
[385708321,1757982639951,-8032.55058851,0.00024345,2]
[385708323,1757982639960,-13914.9894936,0.00024363,2]
[385708325,1757982639969,-4506.0,0.00024372,2]
[385708327,1757982639978,-1922.69017536,0.00024472,2]
[385708329,1757982639987,-2000.0,0.00024472,2]
[385708331,1757982639996,-500.0,0.00024473,2]
[385708333,1757982640006,-500.0,0.00024473,2]
[385708335,1757982640015,-500.39823134,0.00024473,2]
[385708337,1757982640024,-150.0,0.00024473,2]
[385708339,1757982640034,-628.82676976,0.00024473,2]
[385708341,1757982640043,-157.83551921,0.00024473,2]
[385708343,1757982640053,-155.615,0.00024473,7]
[385708345,1757982640063,-573.45974059,0.00024473,2]
[385708347,1757982640072,-33175.93219158,0.000245,2]
[385708349,1757982640086,-11963.61260464,0.000245,2]
[385708352,1757982640098,-325.21779113,0.000245,2]
[385708354,1757982640109,-562.22331977,0.000245,2]
[385708356,1757982640120,-4407.05516644,0.000245,2]
[385708358,1757982640131,-12486.00032091,0.000245,2]
[385708361,1757982640143,-2494.67448492,0.000245,2]
[385708625,1757982643088,-3296.22099132,0.00022873,2]
[385708627,1757982643097,-500.0,0.00022958,2]
[385708629,1757982643107,-500.0,0.00022958,2]
[385708630,1757982643116,-500.0,0.00022958,2]
[385708632,1757982643125,-500.0,0.00022958,2]
[385708634,1757982643134,-500.0,0.00022958,2]
[385708636,1757982643143,-500.0,0.00022958,2]
[385708638,1757982643152,-173.62278837,0.00022958,2]
[385708640,1757982643161,-500.0,0.00022958,2]
[385708642,1757982643170,-500.0,0.00022958,2]
[385708644,1757982643179,-500.0,0.00022958,2]
[385708646,1757982643188,-500.0,0.00022958,2]
[385708648,1757982643197,-500.0,0.00022958,2]
[385708651,1757982643206,-500.0,0.00022958,2]
[385708654,1757982643215,-500.0,0.00022958,2]
[385708657,1757982643224,-322.82527473,0.00022958,2]
[385708659,1757982643233,-500.0,0.00022958,2]
[385708661,1757982643242,-500.0,0.00022958,2]
[385708663,1757982643251,-500.0,0.00022958,2]
[385708665,1757982643260,-500.0,0.00022958,2]
[385708667,1757982643269,-500.0,0.00022958,2]
[385708669,1757982643278,-500.0,0.00022958,2]
[385708671,1757982643287,-500.0,0.00022958,2]
[385708673,1757982643295,-500.0,0.00022958,2]
[385708675,1757982643306,-500.0,0.00022958,2]
[385708676,1757982643315,-500.0,0.00022958,2]
[385708677,1757982643324,-500.0,0.00022958,2]
[385708678,1757982643333,-500.0,0.00022958,2]
[385708679,1757982643341,-500.0,0.00022958,2]
[385708680,1757982643351,-500.0,0.00022958,2]
[385708681,1757982643359,-500.0,0.00022958,2]
[385708682,1757982643369,-500.0,0.00022958,2]
[385708683,1757982643380,-500.0,0.00022958,2]
[385708684,1757982643389,-549.91422572,0.00022958,2]
[385708685,1757982643399,-500.0,0.00022958,2]
[385708686,1757982643407,-500.0,0.00022958,2]
[385708687,1757982643416,-500.0,0.00022958,2]
[385708688,1757982643426,-471.30562327,0.00022958,2]
[385708689,1757982643435,-500.0,0.00022958,2]
[385708690,1757982643444,-500.0,0.00022958,2]
[385708691,1757982643454,-500.0,0.00022958,2]
[385708692,1757982643465,-743.12676194,0.000245,2]
[385708693,1757982643474,-588.0,0.00024542,2]
[385708694,1757982643483,-1500.0,0.00024568,2]
[385708695,1757982643491,-506.33177552,0.00024568,2]
[385708696,1757982643500,-1500.0,0.00024568,2]
[385708697,1757982643510,-1500.0,0.00024568,2]
[385708698,1757982643519,-1500.0,0.00024568,2]
[385708699,1757982643527,-489.87472009,0.000246,2]
[385708700,1757982643537,-500.0,0.000246,2]
[385708701,1757982643546,-2364.88,0.00024607,2]
[385708702,1757982643555,-151.0,0.00024607,7]
[385708703,1757982643564,-360.0,0.00024607,2]
[385708704,1757982643573,-588.0,0.00024608,2]
[385708705,1757982643582,-480.0,0.00024608,3]
[385708706,1757982643591,-936.85,0.00024608,3]
[385708707,1757982643599,-480.0,0.00024608,3]
[385708708,1757982643608,-1192.65,0.00024608,3]
[385708709,1757982643617,-586.26,0.00024608,3]
[385708710,1757982643627,-1185.96,0.00024609,3]
[385708711,1757982643636,-151.0,0.00024616,7]
[385708712,1757982643645,-990.18785629,0.00024616,2]
[385708713,1757982643654,-2000.0,0.00024616,2]
[385708714,1757982643673,-1500.0,0.00024616,2]
[385708715,1757982643683,-500.0,0.00024616,2]
[385708716,1757982643691,-621.38702636,0.00024616,2]
[385708717,1757982643701,-1000.0,0.00024616,2]
[385708718,1757982643710,-200.0,0.00024657,2]
[385708719,1757982643719,-150.52853011,0.00024657,5]
[385708720,1757982643728,-150.0,0.00024658,2]
[385708721,1757982643738,-380.0,0.00024658,2]
[385708723,1757982643747,-500.0,0.00024658,2]
[385708724,1757982643756,-501.06059311,0.00024673,2]
[385708726,1757982643766,-588.0,0.00024696,2]
[385708727,1757982643775,-5000.0,0.00024699,2]
[385708729,1757982643784,-151.0,0.000247,7]
[385708730,1757982643793,-219.51651247,0.00024725,2]
[385708732,1757982643802,-588.0,0.00024781,2]
[385708733,1757982643812,-7000.0,0.00024794,2]
[385708735,1757982643822,-588.0,0.00024795,2]
[385708737,1757982643832,-489.87472009,0.000248,2]
[385708740,1757982643842,-277.0,0.000248,2]
[385708742,1757982643851,-588.0,0.00024823,2]
[385708743,1757982643860,-588.0,0.00024864,7]
[385708746,1757982643870,-588.0,0.00024869,2]
[385708748,1757982643879,-555.7741542,0.00024873,2]
[385708750,1757982643889,-500.0,0.00024873,2]
[385708752,1757982643898,-500.0,0.00024873,2]
[385708754,1757982643907,-598.03792352,0.00024873,2]
[385708756,1757982643916,-500.0,0.00024873,2]
[385708758,1757982643926,-500.0,0.00024873,2]
[385708760,1757982643935,-500.32845412,0.00024873,2]
[385708762,1757982643945,-500.0,0.00024873,2]
[385708764,1757982643954,-500.0,0.00024873,2]
[385708766,1757982643964,-500.0,0.00024873,2]
[385708768,1757982643974,-500.0,0.00024873,2]
[385708770,1757982643983,-500.0,0.00024873,2]
[385708772,1757982643992,-500.0,0.00024873,2]
[385708774,1757982644002,-500.0,0.00024873,2]
[385708776,1757982644012,-549.04545887,0.00024873,2]
[385708778,1757982644021,-500.0,0.00024873,2]
[385708780,1757982644031,-174.53655471,0.00024873,2]
[385708782,1757982644040,-500.0,0.00024873,2]
[385708784,1757982644050,-500.0,0.00024873,2]
[385708786,1757982644059,-500.0,0.00024873,2]
[385708788,1757982644068,-500.0,0.00024873,2]
[385708790,1757982644077,-202.73440977,0.00024873,2]
[385708792,1757982644086,-500.0,0.00024873,2]
[385708807,1757982644221,-500.0,0.00024873,2]
[385708809,1757982644232,-500.1783756,0.00024873,2]
[385708811,1757982644242,-500.0,0.00024873,2]
[385708813,1757982644251,-500.0,0.00024873,2]
[385708815,1757982644261,-500.0,0.00024874,2]
[385708817,1757982644273,-480.0,0.00024882,3]
[385708819,1757982644283,-936.85,0.00024882,3]
[385708821,1757982644292,-480.0,0.00024882,3]
[385708824,1757982644303,-1192.65,0.00024882,3]
[385708825,1757982644312,-586.26,0.00024882,3]
[385708828,1757982644334,-1185.96,0.00024883,3]
[385708829,1757982644343,-9000.0,0.00024888,2]
[385708831,1757982644352,-2125.15,0.000249,7]
[385708833,1757982644361,-20262.73,0.000249,7]
[385708836,1757982644371,-279.2,0.000249,2]
[385708837,1757982644384,-160.0,0.000249,7]
[385708840,1757982644395,-847.45018724,0.000249,7]
[385708842,1757982644404,-431798.784836,0.000249,2]
[385708844,1757982644413,-705.64686085,0.00024928,2]
[385708846,1757982644423,-500.0,0.00024932,2]
[385708848,1757982644432,-591.0,0.00024932,2]
[385708850,1757982644442,-160.0,0.00024944,2]
[385708852,1757982644451,-847.45018724,0.00024944,2]
[385708854,1757982644461,-160.0,0.00024944,2]
[385708856,1757982644470,-160.0,0.00024944,2]
[385708858,1757982644479,-591.0,0.00024978,7]
[385708860,1757982644489,-804.16563302,0.0002498,2]
[385708862,1757982644497,-588.0,0.00024997,2]
[385708863,1757982644506,-279.2,0.00025,2]
[385708866,1757982644516,-1191.71420437,0.00025,10]
[385708867,1757982644525,-1000.0,0.00025021,2]
[385708869,1757982644534,-500.23749209,0.00025021,2]
[385708871,1757982644543,-300.0,0.00025021,2]
[385708873,1757982644553,-588.0,0.00025038,2]
[385708875,1757982644562,-591.0,0.00025048,2]
[385708877,1757982644571,-588.0,0.00025066,2]
[385708879,1757982644580,-197.0,0.00025069,7]
[385708881,1757982644590,-591.0,0.00025098,2]
[385708883,1757982644599,-489.87472009,0.000251,2]
[385708885,1757982644608,-588.0,0.0002511,2]
[385708887,1757982644618,-2000.0,0.00025116,2]
[385708889,1757982644627,-875.31678154,0.00025116,2]
[385708891,1757982644636,-2000.0,0.00025116,2]
[385708893,1757982644645,-1000.0,0.00025116,2]
[385708895,1757982644655,-650.452479,0.00025148,2]
[385708897,1757982644664,-460.0,0.00025155,2]
[385708899,1757982644673,-480.0,0.00025156,3]
[385708901,1757982644685,-936.85,0.00025156,3]
[385708903,1757982644694,-301.17713848,0.00025156,3]
[385708905,1757982644705,-1192.65,0.00025156,3]
[385708907,1757982644714,-586.26,0.00025156,3]
[385708909,1757982644723,-1185.96,0.00025157,3]
[385708911,1757982644732,-2500.0,0.00025164,2]
[385708913,1757982644741,-588.0,0.00025173,2]
[385708915,1757982644750,-328.0,0.000252,3]
[385708917,1757982644759,-379.96448575,0.000252,3]
[385708919,1757982644768,-328.0,0.000252,3]
[385708921,1757982644777,-847.45018724,0.000252,3]
[385708923,1757982644786,-328.0,0.000252,3]
[385708925,1757982644796,-250.0,0.00025205,2]
[385708927,1757982644807,-500.0,0.00025206,2]
[385708929,1757982644816,-588.0,0.00025226,2]
[385708931,1757982644825,-588.0,0.00025257,2]
[385708933,1757982644834,-588.0,0.00025282,2]
[385708934,1757982644844,-489.87472009,0.000253,2]
[385708936,1757982644853,-588.0,0.00025303,2]
[385708938,1757982644863,-1001.97,0.00025359,2]
[385708940,1757982644872,-771.842,0.00025359,2]
[385708942,1757982644882,-2156.0,0.00025359,2]
[385708944,1757982644891,-600.0,0.00025397,20]
[385708946,1757982644900,-1000.0,0.00025421,2]
[385708948,1757982644910,-1000.0,0.00025421,2]
[385708950,1757982644919,-500.35433187,0.00025421,2]
[385708952,1757982644928,-1000.0,0.00025421,2]
[385708954,1757982644938,-1000.0,0.00025421,2]
[385708956,1757982644947,-1000.0,0.00025421,2]
[385708958,1757982644957,-1000.0,0.00025421,2]
[385708960,1757982644966,-1000.0,0.00025421,2]
[385708962,1757982644976,-500.65147977,0.00025421,2]
[385708964,1757982644985,-1000.0,0.00025421,2]
[385708966,1757982644994,-1000.0,0.00025421,2]
[385708968,1757982645003,-500.72497296,0.00025421,2]
[385708970,1757982645012,-503.13183178,0.00025421,2]
[385708972,1757982645023,-1000.34979336,0.00025421,2]
[385708974,1757982645032,-1000.0,0.00025421,2]
[385708976,1757982645042,-1000.0,0.00025421,2]
[385708978,1757982645052,-1000.0,0.00025421,2]
[385708980,1757982645062,-507.78243757,0.00025421,2]
[385708982,1757982645071,-1000.0,0.00025421,2]
[385708984,1757982645081,-800.0,0.00025422,2]
[385708986,1757982645090,-314.49154407,0.0002543,3]
[385708988,1757982645099,-936.85,0.0002543,3]
[385708990,1757982645111,-1192.65,0.0002543,3]
[385708992,1757982645120,-586.26,0.0002543,3]
[385708994,1757982645129,-1185.96,0.00025431,3]
[385708996,1757982645139,-900.0,0.00025469,3]
[385708998,1757982645148,-160.0,0.00025479,3]
[385709000,1757982645158,-500.0,0.0002548,2]
[385709003,1757982645179,-160.0,0.00025497,3]
[385709005,1757982645203,-1280.10211624,0.00025568,2]
[385709008,1757982645217,-509.43732988,0.00025568,2]
[385709010,1757982645228,-1766.0,0.00025594,2]
[385709012,1757982645237,-1000.0,0.000256,2]
[385709014,1757982645246,-1000.0,0.000256,2]
[385709016,1757982645255,-1000.0,0.000256,2]
[385709017,1757982645264,-1000.0,0.000256,2]
[385709019,1757982645273,-1000.0,0.000256,2]
[385709021,1757982645282,-1000.0,0.000256,2]
[385709023,1757982645291,-1000.0,0.000256,2]
[385709026,1757982645301,-1000.0,0.000256,2]
[385709028,1757982645310,-1000.0,0.000256,2]
[385709030,1757982645320,-1000.0,0.00025664,2]
[385709032,1757982645332,-251.32505036,0.00025664,2]
[385709034,1757982645342,-160.0,0.00025666,4]
[385709036,1757982645350,-2696.0,0.00025681,2]
[385709038,1757982645360,-560.0,0.00025702,2]
[385709040,1757982645369,-936.85,0.00025704,3]
[385709042,1757982645381,-1192.65,0.00025704,3]
[385709044,1757982645391,-586.26,0.00025704,3]
[385709046,1757982645401,-1185.96,0.00025705,3]
[385709048,1757982645410,-500.0,0.00025712,2]
[385709050,1757982645419,-5000.0,0.00025735,2]
[385709052,1757982645430,-400.0,0.00025753,2]
[385709054,1757982645439,-500.0,0.00025754,2]
[385709056,1757982645448,-160.0,0.00025835,5]
[385709058,1757982645459,-98104.0,0.0002587,7]
[385709060,1757982645469,-160.76537437,0.00025873,2]
[385709062,1757982645478,-250.0,0.00025884,2]
[385709064,1757982645487,-209.196,0.00025884,2]
[385709066,1757982645496,-250.0,0.00025884,2]
[385709068,1757982645506,-225.005,0.00025884,2]
[385709070,1757982645515,-250.0,0.00025884,2]
[385709072,1757982645524,-249.1,0.00025884,2]
[385709074,1757982645534,-262.482,0.00025884,2]
[385709076,1757982645544,-292.187,0.00025884,2]
[385709078,1757982645553,-20262.73,0.000259,7]
[385709080,1757982645562,-847.45018724,0.000259,7]
[385709082,1757982645571,-705.64686085,0.00025964,2]
[385709084,1757982645581,-587.0,0.00025966,2]